bitfinex-derivatives/quotes_SOLF0:USTF0_20250821
["timestamp","ask_amount","ask_price","bid_price","bid_amount"]
[1755746305410,3.64605213,189.1,188.99,16.78550901]
[1755746306012,3.64605213,189.1,189.0,5.2903]
[1755746307218,3.64605213,189.1,188.99,16.78560901]
[1755746308120,3.64605213,189.1,189.0,5.2903]
[1755746309022,3.64605213,189.1,188.99,16.78560901]
[1755746309219,3.64605213,189.1,188.99,11.49500901]
[1755746309421,2.98,189.09,188.99,11.49500901]
[1755746312624,2.98,189.09,189.0,5.2901]
[1755746313118,2.98,189.09,188.99,16.78560901]
[1755746313426,2.98,189.09,188.99,11.49500901]
[1755746313724,6.62605213,189.13,189.04,2.78]
[1755746313925,2.98,189.12,189.0,2.78]
[1755746314318,2.98,189.12,189.01,5.29]
[1755746314516,2.98,189.12,189.0,2.78]
[1755746314718,2.98,189.12,189.0,8.0703]
[1755746316121,2.98,189.12,189.0,2.78]
[1755746316429,2.98,189.09,189.0,2.78]
[1755746319028,2.98,189.06,188.99,8.54500901]
[1755746321331,3.64605213,189.04,188.99,8.54500901]
[1755746321522,2.98,189.02,188.99,8.54500901]
[1755746322123,6.62605213,189.07,188.99,11.32500901]
[1755746322425,2.98,189.06,188.99,8.54500901]
[1755746322632,3.64605213,189.04,188.99,8.54500901]
[1755746322829,2.98,189.03,188.99,8.54500901]
[1755746323026,3.64605213,189.04,188.99,8.54500901]
[1755746323229,2.98,189.0,188.99,8.54500901]
[1755746323628,3.64605213,189.01,188.99,8.54500901]
[1755746323830,2.98,189.03,188.99,8.54500901]
[1755746324024,2.98,189.02,188.99,8.54500901]
[1755746324827,2.98,189.01,188.99,8.54500901]
[1755746325028,2.98,189.03,188.99,8.54500901]
[1755746325228,2.98,189.0,188.99,8.54500901]
[1755746330032,3.64605213,189.07,188.99,8.54500901]
[1755746330230,3.64605213,189.07,188.99,11.32500901]
[1755746331035,3.64605213,189.07,188.99,8.54500901]
[1755746331337,2.98,189.06,188.99,8.54500901]
[1755746332843,3.64605213,189.07,188.99,11.32500901]
[1755746334338,2.98,189.06,188.99,8.54500901]
[1755746334639,21.744878,189.14,188.99,8.54500901]
[1755746334640,2.98,189.02,188.99,8.54500901]
[1755746335140,2.98,189.01,188.99,8.54500901]
[1755746336231,6.62605213,189.01,188.99,8.54500901]
[1755746337035,3.64605213,189.01,188.99,8.54500901]
[1755746339439,3.64605213,189.01,188.95,2.78]
[1755746341639,3.64605213,189.03,188.95,2.78]
[1755746342040,3.64605213,188.99,188.88,2.94]
[1755746342543,2.24795186,188.96,188.88,2.94]
[1755746343342,2.24795186,188.93,188.88,2.94]
[1755746343537,5.01795186,188.93,188.88,2.94]
[1755746343733,2.24795186,188.9,188.88,2.94]
[1755746343935,2.24795186,188.92,188.8,2.24795186]
[1755746344138,2.24795186,188.92,188.82,2.94]
[1755746344344,3.66465117,188.94,188.82,2.94]
[1755746344646,3.66465117,188.94,188.83,2.94]
[1755746345641,3.66465117,188.94,188.83,8.2349]
[1755746345843,3.66465117,188.94,188.84,2.94]
[1755746347237,6.43465117,188.94,188.84,2.94]
[1755746347743,3.66465117,188.88,188.84,2.94]
[1755746347944,6.43465117,188.88,188.76,2.94]
[1755746348138,6.43465117,188.85,188.76,2.94]
[1755746349741,3.66465117,188.85,188.76,2.94]
[1755746349937,3.66465117,188.88,188.76,2.94]
[1755746350136,2.77,188.9,188.69,4.24060849]
[1755746350137,2.77,188.9,188.78,2.94]
[1755746351348,2.77,188.9,188.79,2.94]
[1755746351546,3.66465117,188.88,188.79,2.94]
[1755746352147,3.66465117,188.88,188.67,362.34643609]
[1755746352148,3.66465117,188.85,188.71,2.94]
[1755746352346,3.66465117,188.82,188.71,2.94]
[1755746353244,2.77,188.81,188.71,2.94]
[1755746353650,3.66465117,188.79,188.71,2.94]
[1755746354243,3.66465117,188.82,188.71,2.94]
[1755746355251,6.43465117,188.82,188.71,2.94]
[1755746355450,3.66465117,188.79,188.71,2.94]
[1755746357246,6.43465117,188.76,188.67,2.94]
[1755746359547,2.77,188.75,188.62,2.94]
[1755746359751,2.77,188.72,188.62,2.94]
[1755746364352,2.77,188.75,188.62,2.94]
[1755746364553,2.77,188.75,188.65,2.94]
[1755746365151,2.77,188.75,188.55,2.94]
[1755746365352,3.66465117,188.67,188.55,2.94]
[1755746365756,3.66465117,188.76,188.56,2.94]
[1755746365757,3.66465117,188.7,188.56,2.94]
[1755746365960,2.77,188.72,188.59,2.76]
[1755746366460,2.77,188.72,188.61,3.66465117]
[1755746366661,6.53465117,188.76,188.62,2.76]
[1755746367862,6.53465117,188.76,188.63,2.76]
[1755746368061,2.87,188.76,188.65,2.76]
[1755746369069,2.87,188.76,188.65,8.0601]
[1755746369868,2.87,188.76,188.65,2.76]
[1755746370558,3.66465117,188.76,188.61,2.76]
[1755746370765,2.87,188.72,188.61,2.76]
[1755746371662,3.66465117,188.73,188.61,2.76]
[1755746372164,2.87,188.72,188.61,2.76]
[1755746374972,6.53465117,188.75,188.61,2.76]
[1755746375569,6.53465117,188.75,188.52,360.40060849]
[1755746375570,6.53465117,188.75,188.64,2.76]
[1755746375972,2.87,188.75,188.64,8.0604]
[1755746377176,2.87,188.75,188.64,2.76]
[1755746377375,3.66465117,188.72,188.54,4.24060849]
[1755746377674,2.87,188.71,188.57,2.76]
[1755746379573,2.87,188.71,188.6,2.76]
[1755746379775,6.53465117,188.75,188.6,2.76]
[1755746380070,6.53465117,188.75,188.65,5.3]
[1755746380071,2.87,188.75,188.65,5.3]
[1755746380271,3.66465117,188.75,188.6,6.42465117]
[1755746380481,2.87,188.74,188.6,2.76]
[1755746380774,2.87,188.74,188.61,5.3012]
[1755746380976,2.87,188.74,188.6,2.76]
[1755746381572,2.87,188.74,188.5,16.27283294]
[1755746381573,2.87,188.74,188.65,5.3]
[1755746381878,2.87,188.74,188.62,2.76]
[1755746382475,2.87,188.71,188.62,2.76]
[1755746382677,2.87,188.71,188.62,8.0609]
[1755746382880,2.87,188.71,188.62,2.76]
[1755746384075,2.87,188.75,188.62,2.76]
[1755746384876,2.87,188.75,188.65,5.3]
[1755746385074,2.87,188.75,188.62,2.76]
[1755746385876,2.87,188.75,188.65,5.3001]
[1755746386377,2.87,188.75,188.66,5.2998]
[1755746386574,2.87,188.75,188.65,2.76]
[1755746386982,2.87,188.75,188.67,5.2995]
[1755746387879,2.87,188.75,188.65,2.76]
[1755746387880,2.87,188.75,188.68,5.2993]
[1755746390991,2.87,188.75,188.65,2.76]
[1755746391283,6.53465117,188.75,188.65,2.76]
[1755746391486,2.87,188.74,188.65,2.76]
[1755746394782,3.66465117,188.72,188.61,2.76]
[1755746394975,2.87,188.71,188.61,2.76]
[1755746396686,2.94,188.68,188.61,2.76]
[1755746397080,2.94,188.68,188.58,9.54260849]
[1755746397081,2.94,188.68,188.57,9.54290849]
[1755746397289,2.94,188.68,188.57,7.17060849]
[1755746397490,2.94,188.68,188.57,2.93]
[1755746400692,6.60465117,188.72,188.59,3.66465117]
[1755746400898,6.60465117,188.72,188.61,2.93]
[1755746401798,2.94,188.71,188.61,2.93]
[1755746403593,5.844878,188.77,188.61,2.93]
[1755746403594,3.66465117,188.75,188.61,2.93]
[1755746403793,2.94,188.75,188.63,2.93]
[1755746403996,2.94,188.75,188.65,2.93]
[1755746404400,2.94,188.75,188.66,2.93]
[1755746404605,2.94,188.8,188.69,2.93]
[1755746404791,2.94,188.8,188.69,7.17060849]
[1755746404996,2.94,188.8,188.72,5.298]
[1755746405195,3.66465117,188.85,188.71,3.66465117]
[1755746405498,2.94,188.84,188.75,2.93]
[1755746405704,6.60465117,188.88,188.75,2.93]
[1755746405999,3.66465117,188.88,188.75,2.93]
[1755746406193,2.94,188.87,188.75,2.93]
[1755746407403,2.94,188.87,188.76,2.93]
[1755746407600,8.76291216,188.97,188.76,2.93]
[1755746407601,8.784878,188.97,188.82,2.93]
[1755746407802,2.94,188.97,188.88,8.2234]
[1755746408105,2.94,188.97,188.88,2.93]
[1755746408306,2.94,189.01,188.91,2.93]
[1755746408603,199.65643803,189.03,188.91,2.93]
[1755746408804,199.65643803,189.03,188.94,2.93]
[1755746409604,2.94,189.02,188.94,2.93]
[1755746410200,2.94,189.02,188.9,2.93]
[1755746410399,2.94,189.0,188.9,2.93]
[1755746412103,3.66465117,188.98,188.86,2.93]
[1755746415210,2.94,188.97,188.86,2.93]
[1755746418906,3.66465117,188.95,188.86,2.93]
[1755746421607,2.94,188.94,188.86,2.93]
[1755746422514,3.66465117,188.93,188.81,2.93]
[1755746422714,2.94,188.92,188.81,2.93]
[1755746423216,3.66465117,188.9,188.81,2.93]
[1755746424620,6.60465117,188.9,188.78,2.93]
[1755746426115,3.66465117,188.93,188.78,3.66465117]
[1755746426314,3.66465117,188.93,188.79,2.87]
[1755746426709,2.82,188.94,188.79,2.87]
[1755746426918,2.82,188.94,188.82,2.87]
[1755746427313,2.82,188.94,188.84,5.2947]
[1755746427620,2.82,188.94,188.82,2.87]
[1755746428219,2.82,188.94,188.84,5.2946]
[1755746428418,2.82,188.94,188.85,2.87]
[1755746428817,2.82,188.94,188.86,5.2942]
[1755746429025,2.82,188.94,188.85,2.87]
[1755746434329,2.82,188.94,188.85,8.1645]
[1755746434529,2.82,188.94,188.85,2.87]
[1755746435131,3.66465117,188.98,188.87,5.2939]
[1755746435332,358.68,188.99,188.88,2.87]
[1755746435927,2.82,188.99,188.88,2.87]
[1755746437723,2.82,188.97,188.84,2.87]
[1755746437926,2.82,188.94,188.84,2.87]
[1755746438532,3.66465117,188.92,188.79,2.87]
[1755746438830,2.82,188.91,188.79,2.87]
[1755746441639,2.82,188.88,188.79,2.87]
[1755746441841,2.82,188.88,188.75,2.87]
[1755746442131,2.82,188.85,188.75,2.87]
[1755746443035,3.66465117,188.83,188.71,2.87]
[1755746443235,2.82,188.82,188.71,2.87]
[1755746444032,2.82,188.79,188.71,2.87]
[1755746444338,2.82,188.79,188.67,2.87]
[1755746445830,2.82,188.79,188.67,8.1694]
[1755746446232,2.82,188.79,188.67,2.87]
[1755746446632,3.66465117,188.84,188.69,3.66465117]
[1755746446838,6.48465117,188.84,188.7,2.87]
[1755746447736,6.48465117,188.84,188.71,5.2982]
[1755746448041,6.48465117,188.84,188.7,2.87]
[1755746449537,6.48465117,188.84,188.72,5.2982]
[1755746450030,6.48465117,188.84,188.73,2.87]
[1755746451039,6.48465117,188.84,188.75,5.2973]
[1755746451236,2.82,188.84,188.73,2.87]
[1755746451637,2.82,188.88,188.77,2.87]
[1755746452835,2.82,188.92,188.79,2.87]
[1755746453635,2.82,188.92,188.81,3.66465117]
[1755746453839,2.82,188.92,188.82,2.87]
[1755746454239,2.82,188.92,188.84,5.2948]
[1755746454946,2.82,188.92,188.83,5.295]
[1755746455639,2.82,188.92,188.82,2.87]
[1755746456236,2.82,188.92,188.83,5.295]
[1755746456442,2.82,188.92,188.82,2.87]
[1755746456848,2.82,188.92,188.83,5.295]
[1755746457649,2.82,188.92,188.84,5.2948]
[1755746458540,2.82,188.92,188.85,2.85]
[1755746458852,3.0,188.96,188.85,2.85]
[1755746460554,3.0,188.94,188.81,6.51465117]
[1755746461050,3.0,188.94,188.82,5.2953]
[1755746461243,3.0,188.94,188.83,2.85]
[1755746461447,3.0,188.94,188.83,8.1451]
[1755746461653,3.0,188.94,188.83,2.85]
[1755746462152,3.0,188.94,188.86,8.1442]
[1755746462744,3.0,188.94,188.87,5.2939]
[1755746463054,3.0,188.94,188.86,2.85]
[1755746464952,3.0,188.94,188.84,3.66465117]
[1755746465154,3.0,188.94,188.77,5.66453294]
[1755746465155,3.0,188.94,188.82,2.85]
[1755746465850,3.0,188.92,188.78,3.66465117]
[1755746466047,3.0,188.92,188.79,2.85]
[1755746466454,3.0,188.92,188.83,8.1449]
[1755746467357,3.66465117,188.9,188.78,2.85]
[1755746467650,3.66465117,188.84,188.73,2.85]
[1755746467955,3.0,188.83,188.73,2.85]
[1755746470159,3.0,188.83,188.69,8.96365117]
[1755746470347,3.0,188.83,188.7,2.85]
[1755746470754,3.0,188.83,188.71,5.2984]
[1755746471156,3.0,188.83,188.7,2.85]
[1755746471460,3.0,188.83,188.73,2.85]
[1755746472653,3.0,188.83,188.74,5.2975]
[1755746473150,3.0,188.83,188.73,2.85]
[1755746473553,355.88,188.91,188.73,2.85]
[1755746473761,3.0,188.9,188.76,2.85]
[1755746474559,3.0,188.9,188.78,3.66465117]
[1755746474768,3.0,188.9,188.79,2.85]
[1755746476161,150.34465117,188.95,188.7,146.66]
[1755746476162,3.0,188.88,188.75,6.51465117]
[1755746476867,3.0,188.88,188.75,2.85]
[1755746477053,3.0,188.85,188.72,3.66465117]
[1755746477252,3.0,188.85,188.7,2.85]
[1755746477559,3.0,188.85,188.71,5.2982]
[1755746478364,3.0,188.82,188.72,5.2982]
[1755746481266,3.0,188.82,188.71,5.2984]
[1755746482158,3.0,188.82,188.7,2.85]
[1755746482457,3.0,188.79,188.65,2.85]
[1755746482759,3.0,188.76,188.65,2.85]
[1755746488060,3.66465117,188.74,188.65,2.85]
[1755746488366,2.83,188.73,188.65,2.85]
[1755746489068,2.83,188.73,188.61,2.91]
[1755746489863,2.83,188.77,188.64,2.91]
[1755746490162,2.83,188.77,188.67,2.91]
[1755746490863,2.83,188.82,188.7,5.2985]
[1755746491072,2.83,188.82,188.71,2.91]
[1755746491769,2.83,188.79,188.67,6.57465117]
[1755746492563,2.83,188.79,188.67,2.91]
[1755746492763,2.83,188.76,188.67,2.91]
[1755746498671,2.83,188.76,188.63,2.91]
[1755746498871,2.83,188.73,188.63,2.91]
[1755746499980,2.83,188.7,188.59,2.91]
[1755746500185,2.83,188.67,188.51,2.91]
[1755746500480,2.83,188.67,188.49,145.82]
[1755746500481,2.83,188.67,188.54,2.91]
[1755746500876,2.83,188.67,188.59,2.91]
[1755746501076,3.66465117,188.65,188.53,2.91]
[1755746501281,2.83,188.64,188.53,8.2135]
[1755746501581,2.83,188.64,188.53,2.91]
[1755746501778,2.83,188.61,188.48,2.91]
[1755746501975,2.83,188.58,188.48,2.91]
[1755746502577,2.83,188.58,188.42,2.91]
[1755746502778,3.66465117,188.54,188.42,2.91]
[1755746502973,3.66465117,188.54,188.43,2.91]
[1755746503787,2.83,188.55,188.43,2.91]
[1755746504487,2.83,188.55,188.46,2.91]
[1755746505283,2.83,188.55,188.41,3.66465117]
[1755746505487,2.83,188.55,188.42,2.91]
[1755746506886,2.83,188.53,188.42,2.91]
[1755746508185,3.66465117,188.51,188.42,2.91]
[1755746508389,2.83,188.5,188.42,2.91]
[1755746508989,2.83,188.5,188.38,2.91]
[1755746509988,3.66465117,188.53,188.38,2.91]
[1755746510191,6.49465117,188.53,188.38,2.91]
[1755746510491,2.83,188.52,188.38,2.91]
[1755746510991,2.83,188.52,188.41,5.3068]
[1755746511183,2.83,188.52,188.42,2.91]
[1755746512193,2.83,188.52,188.42,8.2163]
[1755746512491,2.83,188.52,188.42,2.91]
[1755746512688,2.83,188.56,188.46,2.91]
[1755746513286,2.83,188.56,188.47,2.91]
[1755746516495,6.49465117,188.56,188.44,2.81]
[1755746517594,2.83,188.56,188.44,2.81]
[1755746518102,2.85,188.55,188.41,2.81]
[1755746518399,2.85,188.52,188.41,2.81]
[1755746518795,2.85,188.52,188.41,8.1168]
[1755746519006,2.85,188.52,188.41,2.81]
[1755746519197,2.85,188.52,188.41,8.1168]
[1755746519394,2.85,188.52,188.41,2.81]
[1755746519702,6.51465117,188.56,188.43,3.66465117]
[1755746519901,6.51465117,188.56,188.46,5.3052]
[1755746520200,6.51465117,188.56,188.44,2.81]
[1755746520201,2.85,188.56,188.44,2.81]
[1755746520400,2.85,188.56,188.48,5.3047]
[1755746520695,201.77175347,188.61,188.5,2.81]
[1755746522995,6.51465117,188.68,188.54,2.81]
[1755746523201,3.66465117,188.76,188.61,3.66465117]
[1755746523398,2.85,188.75,188.62,2.81]
[1755746523597,2.85,188.75,188.65,2.81]
[1755746524596,2.85,188.75,188.65,8.1101]
[1755746524797,2.85,188.75,188.65,2.81]
[1755746525397,2.85,188.75,188.67,5.2995]
[1755746525605,2.85,188.75,188.65,2.81]
[1755746526500,2.85,188.75,188.66,5.2998]
[1755746526701,2.85,188.75,188.65,2.81]
[1755746528703,2.85,188.74,188.62,3.66465117]
[1755746529807,2.85,188.74,188.63,2.81]
[1755746530612,2.85,188.74,188.63,8.1105]
[1755746530807,2.85,188.74,188.63,2.81]
[1755746531200,2.85,188.79,188.66,3.66465117]
[1755746531406,2.85,188.79,188.69,3.66465117]
[1755746531810,2.85,188.79,188.69,8.96365117]
[1755746532306,2.85,188.79,188.67,2.81]
[1755746532703,6.51465117,188.79,188.67,2.81]
[1755746533104,2.85,188.78,188.67,2.81]
[1755746534911,2.85,188.78,188.7,5.2987]
[1755746535406,2.85,188.78,188.69,5.2989]
[1755746537509,2.85,188.78,188.67,2.81]
[1755746538111,2.85,188.78,188.67,8.1094]
[1755746538310,2.85,188.78,188.67,2.81]
[1755746539107,2.85,188.78,188.69,3.66465117]
[1755746539313,2.85,188.78,188.7,2.81]
[1755746539815,2.85,188.83,188.73,2.81]
[1755746540006,2.85,188.83,188.75,3.66465117]
[1755746540810,2.85,188.87,188.76,2.81]
[1755746543516,2.85,188.92,188.82,3.66465117]
[1755746543714,2.85,188.92,188.83,2.81]
[1755746544620,2.85,188.92,188.83,8.105]
[1755746544814,2.85,188.92,188.83,2.81]
[1755746545324,2.85,188.97,188.88,3.66465117]
[1755746545522,2.85,189.02,188.89,2.81]
[1755746545716,2.85,189.02,188.9,5.2931]
[1755746545922,2.85,189.02,188.91,3.66465117]
[1755746546721,2.76,189.0,188.89,2.81]
[1755746548318,2.76,189.0,188.9,5.2929]
[1755746548621,2.76,189.0,188.89,2.81]
[1755746548822,2.76,189.0,188.91,3.66465117]
[1755746549119,2.76,189.04,188.92,2.86]
[1755746549423,2.76,189.04,188.93,5.2922]
[1755746549621,2.76,189.04,188.92,2.86]
[1755746549926,2.76,189.04,188.92,8.1524]
[1755746550119,2.76,189.04,188.92,2.86]
[1755746550524,2.76,189.04,188.96,2.86]
[1755746551220,2.76,189.04,188.97,5.2911]
[1755746551620,2.76,189.04,188.96,2.86]
[1755746552325,2.76,189.04,188.96,8.1514]
[1755746553427,2.76,189.04,188.96,2.86]
[1755746554222,2.76,189.04,188.78,356.08]
[1755746554429,2.76,189.04,188.92,3.66465117]
[1755746554628,2.76,189.04,188.93,2.86]
[1755746555221,15.91,189.24,188.99,6.52465117]
[1755746555426,2.76,189.15,188.99,6.52465117]
[1755746555824,3.66465117,189.13,188.99,6.52465117]
[1755746556025,2.76,189.12,188.99,6.52465117]
[1755746558020,2.76,189.12,188.99,2.86]
[1755746558326,2.76,189.09,188.96,3.66465117]
[1755746559628,2.76,189.09,188.97,2.86]
[1755746560227,2.76,189.09,188.97,8.151]
[1755746561035,2.76,189.1,188.96,3.66465117]
[1755746561232,2.76,189.1,188.97,2.86]
[1755746561538,2.76,189.1,188.99,3.66465117]
[1755746561836,2.76,189.1,189.0,2.86]
[1755746562434,2.76,189.1,189.01,5.2899]
[1755746563528,2.76,189.1,189.02,5.2897]
[1755746563734,2.76,189.1,189.0,2.86]
[1755746563934,6.42465117,189.14,189.0,2.86]
[1755746564238,6.42465117,189.14,189.03,8.1495]
[1755746564438,6.42465117,189.14,189.03,2.86]
[1755746564632,2.76,189.13,188.99,3.66465117]
[1755746564835,2.76,189.13,189.0,2.86]
[1755746565941,2.76,189.13,188.91,366.2256]
[1755746565942,2.76,189.13,189.05,3.66465117]
[1755746566138,2.76,189.13,189.06,2.86]
[1755746566939,205.87657269,189.18,189.09,2.86]
[1755746567340,205.87657269,189.18,189.13,5.2867]
[1755746567542,2.76,189.2,189.11,3.66465117]
[1755746568136,537.0,189.37,189.12,2.86]
[1755746568341,1828.86,190.16,189.11,3.66465117]
[1755746568342,2.76,189.31,189.17,3.66465117]
[1755746569542,2.76,189.31,189.17,8.95025117]
[1755746569739,2.76,189.31,189.17,3.66465117]
[1755746570136,2.76,189.31,189.18,5.2853]
[1755746570541,2.76,189.31,189.17,3.66465117]
[1755746571244,2.76,189.31,189.17,8.95015117]
[1755746571445,2.76,189.31,189.18,2.86]
[1755746572041,2.76,189.31,189.18,8.1451]
[1755746573845,2.76,189.31,189.19,2.86]
[1755746575746,2.76,189.31,189.21,2.86]
[1755746576948,2.76,189.31,189.21,8.1445]
[1755746577143,2.76,189.31,189.21,2.86]
[1755746577450,2.76,189.31,189.21,8.1444]
[1755746578452,2.76,189.31,189.21,2.86]
[1755746580350,3.66465117,189.31,189.17,2.75]
[1755746580555,2.74,189.3,189.17,2.75]
[1755746580749,3.66465117,189.31,189.17,2.75]
[1755746580750,2.74,189.27,189.17,2.75]
[1755746582749,2.74,189.27,189.14,6.41465117]
[1755746582949,2.74,189.24,189.14,2.75]
[1755746584153,2.74,189.21,189.09,2.75]
[1755746584554,2.74,189.18,189.01,3.66465117]
[1755746584753,2.74,189.14,189.02,2.75]
[1755746584954,2.74,189.11,188.97,2.75]
[1755746585156,146.94465117,189.2,188.97,2.75]
[1755746585157,2.74,189.08,188.97,2.75]
[1755746586660,3.66465117,189.06,188.97,2.75]
[1755746587252,2.74,189.08,188.97,2.75]
[1755746587762,2.74,189.08,188.99,2.75]
[1755746588061,361.74465117,189.12,188.99,2.75]
[1755746588258,361.74465117,189.12,188.99,8.0406]
[1755746588459,361.74465117,189.12,188.99,2.75]
[1755746589163,361.74465117,189.12,188.99,8.0406]
[1755746589661,361.74465117,189.12,188.99,2.75]
[1755746590357,358.08,189.12,189.0,1.87263544]
[1755746590559,358.08,189.12,189.01,2.75]
[1755746591664,358.08,189.12,189.01,8.04]
[1755746592259,358.08,189.12,189.03,5.2894]
[1755746592463,358.08,189.12,189.02,2.75]
[1755746592759,358.08,189.12,189.04,5.2891]
[1755746593065,358.08,189.12,189.02,2.75]
[1755746594164,2.74,189.11,189.01,3.66465117]
[1755746594459,2.74,189.11,188.98,3.66465117]
[1755746594664,2.74,189.11,188.99,1.87307639]
[1755746594858,2.74,189.11,189.0,1.87307639]
[1755746595059,2.74,189.11,188.98,3.66465117]
[1755746595261,2.74,189.11,188.99,1.87323323]
[1755746595565,2.74,189.11,189.0,1.87323323]
[1755746595863,2.74,189.11,188.98,3.66465117]
[1755746596059,2.74,189.11,188.99,1.87343354]
[1755746596259,2.74,189.11,188.98,8.95555117]
[1755746596460,2.74,189.11,188.99,1.87362989]
[1755746596667,2.74,189.11,189.0,1.87362989]
[1755746596964,2.74,189.11,188.99,5.2904]
[1755746597765,2.74,189.11,188.98,3.66465117]
[1755746597966,2.74,189.11,188.97,2.75]
[1755746598854,3.66465117,189.09,188.97,2.75]
[1755746599067,145.82,189.08,188.97,2.75]
[1755746599565,2.74,189.07,188.95,3.66465117]
[1755746599864,2.74,189.07,188.96,1.8749587]
[1755746600063,2.74,189.07,188.95,3.66465117]
[1755746600860,2.74,189.07,188.93,2.75]
[1755746601061,2.74,189.07,188.94,1.87544385]
[1755746601268,2.74,189.07,188.93,8.0423]
[1755746601462,2.74,189.07,188.94,1.87516595]
[1755746601663,2.74,189.07,188.93,2.75]
[1755746601859,2.74,189.07,188.94,1.87516595]
[1755746602066,2.74,189.07,188.93,2.75]
[1755746602265,2.74,189.07,188.93,8.0421]
[1755746602970,143.0,189.06,188.96,2.75]
[1755746603163,2.74,189.07,188.96,2.75]
[1755746603368,2.74,189.07,188.9,143.28]
[1755746603369,2.74,189.07,188.99,2.75]
[1755746604370,2.74,189.09,188.99,2.75]
[1755746604764,2.74,189.09,188.98,3.66465117]
[1755746604966,2.74,189.09,188.95,6.41465117]
[1755746605163,2.74,189.09,188.96,5.2913]
[1755746605569,2.74,189.09,188.95,11.70635117]
[1755746605775,2.74,189.09,188.95,6.41465117]
[1755746606464,2.92,189.07,188.95,6.41465117]
[1755746606861,2.92,189.07,188.95,2.75]
[1755746608267,2.92,189.07,188.95,3.66465117]
[1755746608472,2.92,189.07,188.96,2.94]
[1755746608770,2.92,189.07,188.96,11.89595117]
[1755746608968,2.92,189.07,188.97,2.94]
[1755746609567,2.92,189.07,188.98,5.2908]
[1755746610278,2.92,189.07,188.97,8.2311]
[1755746610574,2.92,189.07,188.97,2.94]
[1755746612879,142.78,189.11,189.01,5.2899]
[1755746613072,142.78,189.11,189.0,2.94]
[1755746613473,142.78,189.11,189.0,8.2302]
[1755746613876,2.92,189.1,189.0,2.94]
[1755746614477,2.92,189.1,188.95,2.94]
[1755746614683,2.92,189.07,188.95,2.94]
[1755746615482,2.92,189.07,188.97,5.291]
[1755746615680,2.92,189.07,188.95,2.94]
[1755746615681,145.64,189.07,188.95,2.94]
[1755746616484,2.92,189.07,188.95,2.94]
[1755746616781,2.92,189.07,188.96,5.2914]
[1755746617173,2.92,189.07,188.95,2.94]
[1755746617576,6.58465117,189.07,188.95,2.94]
[1755746617780,2.92,189.06,188.95,2.94]
[1755746619276,2.92,189.06,188.91,6.60465117]
[1755746619479,142.7,189.08,188.91,2.94]